bitfinex/quotes_BTCUSD_20230108
["timestamp","ask_amount","ask_price","bid_price","bid_amount"]
[1673205440260,0.007,16941.0,16940.0,4.73371005]
[1673205440498,0.007,16941.0,16940.0,4.36535105]
[1673205441264,0.007,16941.0,16940.0,5.03358027]
[1673205441513,0.007,16941.0,16940.0,5.40193927]
[1673205442029,0.007,16941.0,16940.0,5.03358027]
[1673205447065,0.007,16941.0,16940.0,4.36535105]
[1673205448730,0.007,16941.0,16940.0,5.03356615]
[1673205448975,0.007,16941.0,16940.0,5.40192515]
[1673205449907,0.007,16941.0,16940.0,4.73371005]
[1673205450163,0.007,16941.0,16940.0,5.0335633]
[1673205450393,0.007,16941.0,16940.0,5.4019223]
[1673205453193,0.007,16941.0,16940.0,5.4019023]
[1673205453842,0.007,16941.0,16940.0,5.75601284]
[1673205454457,0.007,16941.0,16940.0,5.75603068]
[1673205454863,0.007,16941.0,16940.0,5.21052068]
[1673205455090,0.007,16941.0,16940.0,5.38767198]
[1673205455317,0.007,16941.0,16940.0,5.03356144]
[1673205456220,0.007,16941.0,16940.0,5.21052068]
[1673205456436,0.007,16941.0,16940.0,5.38766394]
[1673205456664,0.007,16941.0,16940.0,5.0335534]
[1673205457168,0.007,16941.0,16940.0,5.38766394]
[1673205457869,0.007,16941.0,16940.0,5.57887968]
[1673205458123,0.007,16941.0,16940.0,5.21052068]
[1673205458384,0.007,16941.0,16940.0,5.57889968]
[1673205459118,0.007,16941.0,16940.0,5.21054068]
[1673205459620,0.007,16941.0,16940.0,5.57889968]
[1673205460132,0.007,16941.0,16940.0,5.21054068]
[1673205460604,0.007,16941.0,16940.0,5.57889968]
[1673205461371,0.007,16941.0,16940.0,5.38766098]
[1673205461884,0.007,16941.0,16940.0,5.03355044]
[1673205464574,0.007,16941.0,16940.0,5.38766098]
[1673205464862,0.007,16941.0,16940.0,5.21054068]
[1673205465082,0.007,16941.0,16940.0,5.57889968]
[1673205465823,0.007,16941.0,16940.0,5.21054068]
[1673205466731,0.007,16941.0,16940.0,5.38766031]
[1673205467029,0.007,16941.0,16940.0,5.38766037]
[1673205468229,0.007,16941.0,16940.0,5.21054068]
[1673205472301,0.007,16941.0,16940.0,5.38765732]
[1673205472555,0.007,16941.0,16940.0,5.03354678]
[1673205474637,0.007,16941.0,16940.0,5.75601632]
[1673205475081,0.007,16941.0,16940.0,5.57889968]
[1673205475328,0.007,16941.0,16940.0,5.21054068]
[1673205476873,0.007,16941.0,16940.0,5.03356216]
[1673205477407,0.007,16941.0,16940.0,5.21054068]
[1673205477658,0.007,16941.0,16940.0,5.57889968]
[1673205477948,0.007,16941.0,16940.0,5.21054068]
[1673205478433,0.007,16941.0,16940.0,5.38768159]
[1673205479127,0.007,16941.0,16940.0,5.03357105]
[1673205480184,0.007,16941.0,16940.0,5.38768159]
[1673205480670,0.007,16941.0,16940.0,5.57889968]
[1673205481121,0.007,16941.0,16940.0,5.21054068]
[1673205484862,0.007,16941.0,16940.0,5.38769382]
[1673205485614,0.007,16941.0,16940.0,5.21054068]
[1673205485854,0.007,16941.0,16940.0,5.57889968]
[1673205487542,0.007,16941.0,16940.0,5.21054068]
[1673205496444,0.007,16941.0,16940.0,5.65333856]
[1673205497292,0.007,16941.0,16940.0,6.02169756]
[1673205497575,0.00689366,16941.0,16940.0,5.75594747]
[1673205497838,0.00689366,16941.0,16940.0,6.0217197]
[1673205499034,0.00689366,16941.0,16940.0,5.57892182]
[1673205499300,0.00689366,16941.0,16940.0,5.21056282]
[1673205500869,0.00689366,16941.0,16940.0,5.21070156]
[1673205501388,0.00689366,16941.0,16940.0,5.65349944]
[1673205501604,0.00689366,16941.0,16940.0,5.75608621]
[1673205513597,0.00689366,16941.0,16940.0,5.38772721]
[1673205513840,0.00689366,16941.0,16940.0,5.56192721]
[1673205514051,0.00689366,16941.0,16940.0,5.93028621]
[1673205515576,0.00689366,16941.0,16940.0,5.56192721]
[1673205518041,0.00689366,16941.0,16940.0,5.26680721]
[1673205518264,0.00689366,16941.0,16940.0,6.26190721]
[1673205518530,0.00689366,16941.0,16940.0,6.63026621]
[1673205521559,0.00689366,16941.0,16940.0,6.63019589]
[1673205523977,0.00689366,16941.0,16940.0,5.93019589]
[1673205524227,0.00689366,16941.0,16940.0,5.56183689]
[1673205524784,0.00689366,16941.0,16940.0,6.63019589]
[1673205526628,0.00689366,16941.0,16940.0,6.27608535]
[1673205527375,0.00689366,16941.0,16940.0,6.14004053]
[1673205529471,0.00689366,16941.0,16940.0,6.26310198]
[1673205530952,0.00689366,16941.0,16940.0,6.26308198]
[1673205531435,0.00689366,16941.0,16940.0,6.14002053]
[1673205531695,0.00689366,16941.0,16940.0,6.14852053]
[1673205532135,0.00689366,16941.0,16940.0,6.28711165]
[1673205533131,0.00689366,16941.0,16940.0,6.14852053]
[1673205534291,0.00689366,16941.0,16940.0,5.70572265]
[1673205534828,0.00689366,16941.0,16940.0,5.33736365]
[1673205536150,0.00689366,16941.0,16940.0,5.78007422]
[1673205536402,0.00689366,16941.0,16940.0,5.51156365]
[1673205536664,0.00689366,16941.0,16940.0,7.2999505]
[1673205537451,0.00265,16943.0,16940.0,7.1929505]
[1673205537704,0.00265,16943.0,16942.0,1.56801191]
[1673205537960,0.00265,16943.0,16942.0,5.80499092]
[1673205538839,0.00265,16943.0,16942.0,5.9365605]
[1673205538840,0.0025,16943.0,16942.0,5.9365605]
[1673205539723,0.0025,16943.0,16942.0,6.0755605]
[1673205539724,0.0035,16943.0,16942.0,6.0755605]
[1673205540767,0.0035,16943.0,16942.0,6.25256013]
[1673205541012,0.0035,16943.0,16942.0,5.89849618]
[1673205541462,0.0035,16943.0,16942.0,6.25256013]
[1673205541707,0.0035,16943.0,16942.0,5.89849618]
[1673205542202,0.00342532,16943.0,16942.0,5.89849618]
[1673205543675,0.00342532,16943.0,16942.0,6.59849618]
[1673205543926,0.00342532,16943.0,16942.0,6.95256013]
[1673205544420,0.00342532,16943.0,16942.0,6.59849618]
[1673205547720,0.00342532,16943.0,16942.0,6.82099055]
[1673205547966,0.00342532,16943.0,16942.0,6.75999319]
[1673205548212,0.00342532,16943.0,16942.0,6.93695123]
[1673205548456,0.00342532,16943.0,16942.0,6.75999319]
[1673205548703,1e-08,16943.0,16942.0,6.75999319]
[1673205551544,1e-08,16943.0,16942.0,6.93693062]
[1673205551791,1e-08,16943.0,16942.0,6.58286667]
[1673205552038,1e-08,16943.0,16942.0,6.93693062]
[1673205552291,1e-08,16943.0,16942.0,6.58286667]
[1673205554237,1e-08,16943.0,16942.0,6.87792667]
[1673205556871,1e-08,16943.0,16942.0,7.23199062]
[1673205557395,1e-08,16943.0,16942.0,6.87792667]
[1673205557847,1e-08,16943.0,16942.0,7.23199062]
[1673205558060,1e-08,16943.0,16942.0,7.05505319]
[1673205560356,1e-08,16943.0,16942.0,6.35505319]
[1673205561317,1e-08,16943.0,16942.0,7.05505319]
[1673205563532,1e-08,16943.0,16942.0,7.49763313]
[1673205563795,1e-08,16943.0,16942.0,6.51564143]
[1673205564093,1e-08,16943.0,16942.0,7.05505319]
[1673205564412,1e-08,16943.0,16942.0,7.49763313]
[1673205564606,1e-08,16943.0,16942.0,6.51564143]
[1673205564773,1e-08,16943.0,16942.0,7.05505319]
[1673205565004,1e-08,16943.0,16942.0,7.49763313]
[1673205565274,1e-08,16943.0,16942.0,6.69267341]
[1673205565774,1e-08,16943.0,16942.0,6.51559565]
[1673205566019,1e-08,16943.0,16942.0,7.05500741]
[1673205567118,1e-08,16943.0,16942.0,7.49758735]
[1673205567378,1e-08,16943.0,16942.0,6.7976158]
[1673205567636,1e-08,16943.0,16942.0,6.53208517]
[1673205567891,1e-08,16943.0,16942.0,6.53180455]
[1673205568413,1e-08,16943.0,16942.0,7.23180455]
[1673205570386,1e-08,16943.0,16942.0,6.69239279]
[1673205570616,1e-08,16943.0,16942.0,7.23180455]
[1673205571806,1e-08,16943.0,16942.0,6.69239279]
[1673205573836,1e-08,16943.0,16942.0,7.23180455]
[1673205574269,1e-08,16943.0,16942.0,6.53180455]
[1673205574744,1e-08,16943.0,16942.0,5.99239279]
[1673205574993,1e-08,16943.0,16942.0,6.1777406]
[1673205575222,1e-08,16943.0,16942.0,6.8777406]
[1673205576674,1e-08,16943.0,16942.0,6.8777306]
[1673205578710,0.00445561,16944.0,16943.0,5.999e-05]
[1673205578934,0.00445561,16944.0,16943.0,4.44083478]
[1673205579707,0.00445561,16944.0,16943.0,4.73587478]
[1673205579956,0.00445561,16944.0,16943.0,4.07247578]
[1673205580177,0.00445561,16944.0,16943.0,4.50651578]
[1673205580951,0.00445561,16944.0,16943.0,4.64794902]
[1673205581214,0.00445561,16944.0,16943.0,4.47081817]
[1673205581705,0.00445561,16944.0,16943.0,5.01630802]
[1673205581967,0.00445561,16944.0,16943.0,4.82507484]
[1673205582184,0.00445561,16944.0,16943.0,5.01630802]
[1673205582406,0.00445561,16944.0,16943.0,5.19343467]
[1673205583361,0.00445561,16944.0,16943.0,4.82507567]
[1673205583576,0.00445561,16944.0,16943.0,4.47081865]
[1673205583828,0.00445561,16944.0,16943.0,4.82507567]
[1673205584513,0.00445561,16944.0,16943.0,5.19343467]
[1673205584730,0.00445561,16944.0,16943.0,4.82507567]
[1673205585932,0.00445561,16944.0,16943.0,5.19343467]
[1673205586429,0.00445561,16944.0,16943.0,4.82507567]
[1673205586706,0.00445561,16944.0,16943.0,4.64794902]
[1673205586934,0.00445561,16944.0,16943.0,4.82510214]
[1673205587404,0.00445561,16944.0,16943.0,4.47084512]
[1673205588232,0.00445561,16944.0,16943.0,4.47085512]
[1673205589418,0.00445561,16944.0,16943.0,4.82511214]
[1673205589662,0.00445561,16944.0,16943.0,4.47085512]
[1673205592136,0.00445561,16944.0,16943.0,4.82511214]
[1673205593327,0.00445561,16944.0,16943.0,4.64800086]
[1673205593492,0.00445561,16944.0,16943.0,5.00225788]
[1673205593712,0.00445561,16944.0,16943.0,4.64800086]
[1673205596479,0.00445561,16944.0,16943.0,5.00225788]
[1673205596927,0.00445561,16944.0,16943.0,5.00224788]
[1673205597428,0.00445561,16944.0,16943.0,4.64799086]
[1673205601960,0.44398055,16945.0,16944.0,0.6]
[1673205602214,0.44398055,16945.0,16944.0,3.20994876]
[1673205602465,0.44398055,16945.0,16944.0,2.670537]
[1673205603505,0.79815991,16945.0,16944.0,2.670537]
[1673205603767,0.79815991,16945.0,16944.0,2.810537]
[1673205604012,0.44398055,16945.0,16944.0,2.810537]
[1673205606246,0.44398055,16945.0,16944.0,3.34994876]
[1673205608477,0.25405677,16945.0,16944.0,3.34994876]
[1673205609501,0.25405677,16945.0,16944.0,3.63204415]
[1673205611512,1.76235763,16946.0,16944.0,3.63204415]
[1673205611764,1.76235763,16946.0,16944.0,3.45489841]
[1673205612015,1.31405763,16946.0,16944.0,3.63204415]
[1673205612270,1.31405763,16946.0,16945.0,0.1076638]
[1673205612556,1.31405763,16946.0,16945.0,1.8780958]
[1673205613316,1.31405763,16946.0,16945.0,2.0040958]
[1673205613584,0.80006479,16946.0,16945.0,2.0040958]
[1673205614051,0.35734058,16946.0,16945.0,2.3040958]
[1673205614544,0.80006479,16946.0,16945.0,2.3040958]
[1673205614805,0.35734058,16946.0,16945.0,2.3040958]
[1673205615525,0.35734058,16946.0,16945.0,2.196432]
[1673205616045,0.35734058,16946.0,16945.0,1.896432]
[1673205616833,0.35734058,16946.0,16945.0,2.196432]
[1673205617349,0.62299099,16946.0,16945.0,2.196432]
[1673205618611,0.62299099,16946.0,16945.0,1.896432]
[1673205619630,0.62299099,16946.0,16945.0,2.196432]
[1673205620180,0.80009056,16946.0,16945.0,2.86196622]
[1673205620423,0.62299099,16946.0,16945.0,2.32347834]
[1673205620882,0.62299099,16946.0,16945.0,2.02347834]
[1673205622399,0.62299099,16946.0,16945.0,2.32347834]
[1673205623262,0.62299099,16946.0,16945.0,2.02347834]
[1673205624207,0.62299099,16946.0,16945.0,2.32347834]
[1673205624430,0.62299099,16946.0,16945.0,2.02347834]
[1673205624793,0.62299099,16946.0,16945.0,2.32347834]
[1673205625012,0.62299099,16946.0,16945.0,2.86196622]
[1673205625524,0.4459056,16946.0,16945.0,2.86196622]
[1673205625779,0.4459056,16946.0,16945.0,2.32347834]
[1673205626014,0.44590425,16946.0,16945.0,2.32347834]
[1673205626282,0.44590425,16946.0,16945.0,2.86196622]
[1673205626533,0.62299099,16946.0,16945.0,2.86196622]
[1673205626758,0.62299099,16946.0,16945.0,2.32347834]
[1673205627005,0.62299099,16946.0,16945.0,2.86196622]
[1673205627255,0.62299099,16946.0,16945.0,3.15701622]
[1673205627504,0.62299099,16946.0,16945.0,2.61852834]
[1673205627748,0.62299099,16946.0,16945.0,3.15701622]
[1673205633480,0.44589089,16946.0,16945.0,3.15701622]
[1673205633731,0.80007025,16946.0,16945.0,3.15701622]
[1673205634540,0.44589089,16946.0,16945.0,3.15701622]
[1673205635474,0.44578162,16946.0,16945.0,3.15701622]
[1673205636231,0.44578162,16946.0,16945.0,3.11688369]
[1673205637224,0.79996098,16946.0,16945.0,3.11688369]
[1673205638184,0.79996098,16946.0,16945.0,3.11459829]
[1673205638677,0.62288172,16946.0,16945.0,3.11459829]
[1673205639243,0.79995464,16946.0,16945.0,2.81954829]
[1673205639486,0.79995464,16946.0,16945.0,3.11459829]
[1673205640439,0.62288172,16946.0,16945.0,3.11459829]
[1673205641643,0.79995527,16946.0,16945.0,3.11459829]
[1673205641968,0.62288172,16946.0,16945.0,3.11459829]
[1673205644658,0.79996484,16946.0,16945.0,3.11459829]
[1673205644925,0.62288172,16946.0,16945.0,3.11459829]
[1673205645506,0.62288172,16946.0,16945.0,2.57839581]
[1673205645753,0.18015208,16946.0,16945.0,3.46594403]
[1673205646253,0.18015208,16946.0,16945.0,3.83430303]
[1673205647087,0.00305195,16946.0,16945.0,3.83430303]
[1673205647336,0.00305195,16946.0,16945.0,3.46594403]
[1673205650128,0.00305195,16946.0,16945.0,3.46592403]
[1673205650634,0.00305195,16946.0,16945.0,3.73161679]
[1673205650886,0.00305195,16946.0,16945.0,4.4793901]
[1673205651136,0.00305195,16946.0,16945.0,3.83428303]
[1673205651663,0.00305195,16946.0,16945.0,3.46592403]
[1673205652889,0.00305195,16946.0,16945.0,3.46591403]
[1673205659091,0.00305195,16946.0,16945.0,3.28891543]
[1673205659573,0.00305195,16946.0,16945.0,3.46606117]
[1673205661408,0.00305195,16946.0,16945.0,3.28523243]
[1673205661909,0.00305195,16946.0,16945.0,3.46237817]
[1673205662146,0.00305195,16946.0,16945.0,3.28523243]
[1673205662388,0.00305195,16946.0,16945.0,3.46237817]
[1673205662893,0.00305195,16946.0,16945.0,3.28523243]
[1673205664228,0.00305195,16946.0,16945.0,3.46237817]
[1673205664457,0.00305195,16946.0,16945.0,3.28523243]
[1673205664699,0.00305195,16946.0,16945.0,3.46237817]
[1673205664943,0.00305195,16946.0,16945.0,3.28523243]
[1673205665234,0.00305195,16946.0,16945.0,3.46237817]
[1673205674914,0.00305195,16946.0,16945.0,3.28523243]
[1673205675415,0.00305195,16946.0,16945.0,3.46237817]
[1673205679971,0.00305195,16946.0,16945.0,3.72807093]
[1673205681012,0.00305195,16946.0,16945.0,4.47565945]
[1673205682958,0.00305195,16946.0,16945.0,3.72807093]
[1673205683203,0.00305195,16946.0,16945.0,4.47666442]
[1673205683508,0.00305195,16946.0,16945.0,3.46237817]
[1673205684198,0.00305195,16946.0,16945.0,3.72807093]
[1673205684460,0.00305195,16946.0,16945.0,3.46237817]
[1673205684989,0.00305195,16946.0,16945.0,4.47687149]
[1673205685493,0.00305195,16946.0,16945.0,4.47686686]
[1673205685761,0.00305195,16946.0,16945.0,4.83109359]
[1673205686010,0.00305195,16946.0,16945.0,4.65397814]
[1673205687912,0.43711756,16947.0,16946.0,0.73545463]
[1673205688167,0.43711756,16947.0,16946.0,3.30513986]
[1673205689380,0.43711756,16947.0,16946.0,3.60014986]
[1673205689617,0.44311756,16947.0,16946.0,3.60014986]
[1673205692087,0.43351756,16947.0,16946.0,3.60014986]
[1673205697249,0.43351756,16947.0,16946.0,3.77726342]
[1673205697496,0.18310013,16947.0,16946.0,3.77726342]
[1673205697750,0.17350013,16947.0,16946.0,3.77726342]
[1673205698768,0.17350013,16947.0,16946.0,3.60014986]
[1673205699355,0.17350013,16947.0,16946.0,3.77726342]
[1673205700439,0.17350013,16947.0,16946.0,3.60014986]
[1673205700653,0.17350013,16947.0,16946.0,3.77726342]
[1673205701380,0.17350013,16947.0,16946.0,3.60014986]
[1673205701608,0.17350013,16947.0,16946.0,3.77726342]
[1673205702417,0.006,16947.0,16946.0,4.9685017]
[1673205703655,0.006,16947.0,16946.0,4.21685618]
[1673205704214,0.006,16947.0,16946.0,3.95116342]
[1673205707761,0.183062,16947.0,16946.0,3.95116342]
[1673205708874,0.006,16947.0,16946.0,3.95116342]
[1673205717088,0.006,16947.0,16946.0,4.12819618]
[1673205717853,0.006,16947.0,16946.0,3.86250342]
[1673205718811,0.006,16947.0,16946.0,3.68860342]
[1673205719609,0.00594,16947.0,16946.0,3.68860342]
[1673205721513,0.00588,16947.0,16946.0,3.68860342]
[1673205723060,0.00588,16947.0,16946.0,3.95429618]
[1673205723542,0.00588,16947.0,16946.0,4.70270576]
[1673205724019,0.00582,16947.0,16946.0,4.70270576]
[1673205728035,0.00576,16947.0,16946.0,4.70270576]
[1673205729532,0.0057,16947.0,16946.0,4.70270576]
[1673205730012,0.0057,16947.0,16946.0,4.69770576]
[1673205731560,0.0057,16947.0,16946.0,4.69716266]
[1673205731812,0.0057,16947.0,16946.0,3.94929618]
[1673205732072,0.0057,16947.0,16946.0,4.69716348]
[1673205732333,0.0057,16947.0,16946.0,3.94929618]
[1673205732578,0.0057,16947.0,16946.0,3.68360342]
[1673205732827,0.0057,16947.0,16946.0,3.94929618]
[1673205733093,0.0057,16947.0,16946.0,3.68360342]
[1673205733338,0.0057,16947.0,16946.0,3.94929618]
[1673205733605,0.0057,16947.0,16946.0,3.68360342]
[1673205735626,0.4484185,16947.0,16946.0,2.70713163]
[1673205735876,1.17096578,16947.0,16946.0,2.41212163]
[1673205736124,0.99389486,16947.0,16946.0,2.41212163]
[1673205736623,1.68193062,16947.0,16946.0,1.180218]
[1673205736881,2.56761089,16947.0,16946.0,1.180218]
[1673205737129,2.69071991,16947.0,16946.0,1.180218]
[1673205737376,2.33665651,16947.0,16946.0,1.180218]
[1673205737876,2.33665651,16947.0,16946.0,0.590109]
[1673205738386,2.15613815,16947.0,16946.0,0.590109]
[1673205739408,1.80224395,16947.0,16946.0,0.590109]
[1673205740404,2.15602226,16947.0,16946.0,0.590109]
[1673205740924,2.15602226,16947.0,16946.0,1.180218]
[1673205741432,2.03279728,16947.0,16946.0,1.180218]
[1673205742149,2.15438711,16947.0,16946.0,1.180218]
[1673205742398,2.03279728,16947.0,16946.0,1.180218]
[1673205742653,2.15436448,16947.0,16946.0,1.180218]
[1673205743201,2.03279728,16947.0,16946.0,1.180218]
[1673205743697,2.15446874,16947.0,16946.0,1.180218]
[1673205744677,2.29801247,16947.0,16946.0,1.180218]
[1673205745074,2.03279728,16947.0,16946.0,1.180218]
[1673205745547,2.29801188,16947.0,16946.0,1.180218]
[1673205746257,1.85528767,16947.0,16946.0,1.180218]
[1673205747285,2.29801188,16947.0,16946.0,1.180218]
[1673205747539,1.85528767,16947.0,16946.0,1.180218]
[1673205748310,1.85528767,16947.0,16946.0,0.590109]
[1673205750492,1.68108767,16947.0,16946.0,0.590109]
[1673205752655,1.68108767,16947.0,16946.0,0.5899974]
[1673205754463,2.21550023,16947.0,16945.0,0.70790786]
[1673205754707,0.63341044,16946.0,16945.0,0.70790786]
[1673205754963,0.8101114,16946.0,16945.0,0.70790786]
[1673205755409,0.4417524,16946.0,16945.0,0.70790786]
[1673205755660,0.8101114,16946.0,16945.0,0.76090786]
[1673205755915,0.8101114,16946.0,16945.0,0.70790786]
[1673205756162,0.4417524,16946.0,16945.0,0.59012]
[1673205756413,1.49840233,16946.0,16945.0,0.59012]
[1673205757182,1.67547968,16946.0,16945.0,0.71612]
[1673205757690,1.30712068,16946.0,16945.0,0.71612]
[1673205757947,1.67547968,16946.0,16945.0,0.71612]
[1673205758464,1.67547968,16946.0,16945.0,0.70612]
[1673205758729,1.30712068,16946.0,16945.0,0.70612]
[1673205758984,1.67547968,16946.0,16945.0,0.70612]
[1673205759975,1.85213407,16946.0,16945.0,0.70612]
[1673205760204,1.12999676,16946.0,16945.0,0.70612]
[1673205760461,1.49835576,16946.0,16945.0,0.70612]
[1673205761018,1.12999676,16946.0,16945.0,1.00118]
[1673205761501,1.49835576,16946.0,16945.0,1.00118]
[1673205761752,1.12999676,16946.0,16945.0,1.00118]
[1673205762024,1.49835576,16946.0,16945.0,1.00118]
[1673205762283,1.49835576,16946.0,16945.0,0.70612]
[1673205762501,1.49835576,16946.0,16945.0,1.00119]
[1673205763268,1.12999676,16946.0,16945.0,1.00119]
[1673205764031,1.49835576,16946.0,16945.0,1.00119]
[1673205764519,1.12999676,16946.0,16945.0,1.00119]
[1673205765030,1.49835576,16946.0,16945.0,1.00119]
[1673205765565,1.12999676,16946.0,16945.0,1.00119]
[1673205766053,1.49835576,16946.0,16945.0,1.00119]
[1673205766296,1.12999676,16946.0,16945.0,1.00119]
[1673205766778,1.49835576,16946.0,16945.0,1.00119]
[1673205767008,1.12999676,16946.0,16945.0,1.00119]
[1673205767258,1.48377507,16946.0,16945.0,1.00119]
[1673205767517,1.85213407,16946.0,16945.0,0.70612]
[1673205767789,1.67547968,16946.0,16945.0,0.70612]
[1673205768014,1.30712068,16946.0,16945.0,0.70612]
[1673205768260,1.67547968,16946.0,16945.0,0.70612]
[1673205769002,1.30712068,16946.0,16945.0,0.70612]
[1673205769260,1.67547968,16946.0,16945.0,0.70612]
[1673205770037,1.30712068,16946.0,16945.0,0.70612]
[1673205770288,1.67547968,16946.0,16945.0,0.70612]
[1673205770803,1.48479345,16946.0,16945.0,0.70612]
[1673205771062,1.60528874,16946.0,16945.0,0.70612]
[1673205771334,1.97364774,16946.0,16945.0,0.70612]
[1673205771585,1.60528874,16946.0,16945.0,0.70612]
[1673205771858,1.97364774,16946.0,16945.0,0.70612]
[1673205772558,1.61986943,16946.0,16945.0,0.70612]
[1673205772805,1.25151043,16946.0,16945.0,0.70612]
[1673205772886,1.61986943,16946.0,16945.0,0.70612]
[1673205773907,1.25151043,16946.0,16945.0,0.70612]
[1673205774170,1.61986943,16946.0,16945.0,0.70612]
[1673205775439,1.25151043,16946.0,16945.0,0.70612]
[1673205775909,1.61986943,16946.0,16945.0,0.70612]
[1673205776649,1.25151043,16946.0,16945.0,0.70612]
[1673205777154,1.61986943,16946.0,16945.0,0.70612]
[1673205777638,1.25151043,16946.0,16945.0,0.70612]
[1673205778901,1.61986943,16946.0,16945.0,0.70612]
[1673205779190,1.25151043,16946.0,16945.0,0.70612]
[1673205780474,1.25151043,16946.0,16945.0,1.00119]
[1673205780724,1.61986943,16946.0,16945.0,1.00119]
[1673205781187,1.25151043,16946.0,16945.0,1.00119]
[1673205781968,1.61986943,16946.0,16945.0,1.00119]
[1673205782196,1.25151043,16946.0,16945.0,1.00119]
[1673205782463,1.61986943,16946.0,16945.0,1.00119]
[1673205782980,1.25151043,16946.0,16945.0,1.00119]
[1673205783761,1.61986943,16946.0,16945.0,1.00119]
[1673205784282,1.25151043,16946.0,16945.0,0.70600698]
[1673205785039,1.61986943,16946.0,16945.0,0.70600698]
[1673205785564,1.25151043,16946.0,16945.0,0.70600698]
[1673205785810,1.25151043,16946.0,16945.0,1.00107698]
[1673205790349,0.80878622,16946.0,16945.0,1.00107698]
[1673205790853,1.25150522,16946.0,16945.0,1.00107698]
[1673205791118,0.80878622,16946.0,16945.0,1.00107698]
[1673205794591,1.17714522,16946.0,16945.0,1.00107698]
[1673205797198,0.80878622,16946.0,16945.0,1.00107698]
[1673205797406,1.17714522,16946.0,16945.0,1.00107698]
[1673205799549,1.17714522,16946.0,16945.0,0.70600698]
[1673205801280,0.80878622,16946.0,16945.0,1.00107698]
[1673205802097,1.17714522,16946.0,16945.0,1.00107698]
[1673205802308,0.80878622,16946.0,16945.0,1.00107698]
[1673205802567,1.17714522,16946.0,16945.0,1.00107698]
[1673205803559,0.80878622,16946.0,16945.0,1.00107698]
[1673205804544,0.80878622,16946.0,16945.0,1.00096204]
[1673205804799,1.17714522,16946.0,16945.0,1.00096204]
[1673205805316,0.80878622,16946.0,16945.0,1.00096204]
[1673205806520,1.17703619,16946.0,16945.0,1.00096204]
[1673205807000,0.80867719,16946.0,16945.0,1.00096204]
[1673205807722,1.17703619,16946.0,16945.0,1.00096204]
[1673205808238,0.80867719,16946.0,16945.0,1.00096204]
[1673205811461,1.17703619,16946.0,16945.0,1.00096204]
[1673205814603,0.80867719,16946.0,16945.0,1.00096204]
[1673205815921,1.17703619,16946.0,16945.0,1.00096204]
[1673205816138,0.80867719,16946.0,16945.0,1.00096204]
[1673205816438,1.17703619,16946.0,16945.0,1.00096204]
[1673205816934,0.80867719,16946.0,16945.0,1.00096204]
[1673205817457,1.17703619,16946.0,16945.0,1.00096204]
[1673205817661,0.80867719,16946.0,16945.0,1.00096204]
[1673205818427,1.17703619,16946.0,16945.0,1.00096204]
[1673205819668,1.17703619,16946.0,16945.0,0.70589204]
[1673205820631,0.80867719,16946.0,16945.0,0.70589204]
[1673205821176,0.80867719,16946.0,16945.0,1.00096204]
[1673205824164,1.17703619,16946.0,16945.0,1.00096204]
[1673205825453,1.17703619,16946.0,16945.0,1.0016868]
[1673205825779,1.17703619,16946.0,16945.0,1.00096204]
[1673205826453,0.80867719,16946.0,16945.0,1.00096204]
[1673205826703,0.80367719,16946.0,16945.0,1.00096204]
[1673205827418,1.17203619,16946.0,16945.0,1.00096204]
[1673205830427,0.80367719,16946.0,16945.0,1.00096204]
[1673205830945,1.17203619,16946.0,16945.0,1.00096204]
[1673205831475,1.17203619,16946.0,16945.0,0.70589204]
[1673205839156,1.70307623,16946.0,16945.0,0.70589204]
[1673205839721,1.17203619,16946.0,16945.0,0.70589204]
[1673205840738,1.70307623,16946.0,16945.0,0.70589204]
[1673205841226,1.17203619,16946.0,16945.0,0.70589204]
[1673205843680,1.70307623,16946.0,16945.0,0.70589204]
[1673205845520,1.17203619,16946.0,16945.0,0.70589204]
[1673205845786,1.17203619,16946.0,16945.0,0.126]
[1673205846048,0.80367719,16946.0,16945.0,0.126]
[1673205846319,1.17203619,16946.0,16945.0,0.126]
[1673205846537,0.80367719,16946.0,16945.0,0.126]
[1673205848757,1.33471723,16946.0,16945.0,0.126]
[1673205849481,0.80367719,16946.0,16945.0,0.126]
[1673205849708,1.33471723,16946.0,16945.0,0.126]
[1673205849934,0.80367719,16946.0,16945.0,0.126]
[1673205850182,0.80367719,16946.0,16945.0,0.12592615]
[1673205850623,1.17203619,16946.0,16945.0,0.12592615]
[1673205853423,0.80367719,16946.0,16945.0,0.12592615]
[1673205862415,0.80367719,16946.0,16945.0,0.12665091]
[1673205862665,0.80367719,16946.0,16945.0,0.12592615]
[1673205864356,0.80367719,16946.0,16945.0,0.71607015]
[1673205871033,0.80367719,16946.0,16945.0,0.12592615]
[1673205875092,0.80367719,16946.0,16945.0,0.12580632]
[1673205875587,1.17203619,16946.0,16945.0,0.12580632]
[1673205876298,0.80367719,16946.0,16945.0,0.12580632]
[1673205876552,1.17203619,16946.0,16945.0,0.12580632]
[1673205877036,0.80367719,16946.0,16945.0,0.12580632]
[1673205877534,1.17203619,16946.0,16945.0,0.12580632]
[1673205885339,0.80367719,16946.0,16945.0,0.12580632]
[1673205885558,1.17203619,16946.0,16945.0,0.12580632]
[1673205885782,0.80367719,16946.0,16945.0,0.12580632]
[1673205885998,1.17203619,16946.0,16945.0,0.12580632]
[1673205886998,0.80367719,16946.0,16945.0,0.12580632]
[1673205887467,1.17203619,16946.0,16945.0,0.12580632]
[1673205888389,1.70307623,16946.0,16945.0,0.12580632]
[1673205888601,1.17203619,16946.0,16945.0,0.12580632]
[1673205889108,1.70307623,16946.0,16945.0,0.12580632]
[1673205889354,1.17203619,16946.0,16945.0,0.12580632]
[1673205889590,1.39578507,16946.0,16945.0,0.12580632]
[1673205890081,1.17203619,16946.0,16945.0,0.12580632]
[1673205894345,1.70307623,16946.0,16945.0,0.12580632]
[1673205899099,1.70301331,16946.0,16945.0,0.12580632]
[1673205901484,2.30301331,16946.0,16945.0,0.12030132]
[1673205901793,1.70301331,16946.0,16945.0,0.12030132]
[1673205904249,1.17197327,16946.0,16945.0,0.12030132]
[1673205904746,1.70301331,16946.0,16945.0,0.12030132]
[1673205905746,1.17197327,16946.0,16945.0,0.12030132]
[1673205906281,1.70301331,16946.0,16945.0,0.12030132]
[1673205907296,1.17197327,16946.0,16945.0,0.12030132]
[1673205907749,1.70301331,16946.0,16945.0,0.12030132]
[1673205908020,1.17197327,16946.0,16945.0,0.12030132]
[1673205908258,1.70301331,16946.0,16945.0,0.12030132]
[1673205908520,1.17197327,16946.0,16945.0,0.12030132]
[1673205911835,1.70301331,16946.0,16945.0,0.12030132]
[1673205912567,1.17197327,16946.0,16945.0,0.12030132]
[1673205914047,1.70301331,16946.0,16945.0,0.12030132]